bitfinex/quotes_SOLUSD_20250107
["timestamp","ask_amount","ask_price","bid_price","bid_amount"]
[1736214336168,8.95686277,218.47,218.4,8.95686277]
[1736214336463,23.776884,218.5,218.39,1.6253]
[1736214336464,6.0026,218.54,218.41,8.95686277]
[1736214336667,8.95686277,218.48,218.42,1.98]
[1736214339674,35.82745108,218.57,218.42,1.98]
[1736214339675,8.95686277,218.47,218.42,1.98]
[1736214339881,23.776884,218.55,218.42,1.98]
[1736214339882,8.95686277,218.46,218.42,1.98]
[1736214341776,8.95686277,218.47,218.42,1.98]
[1736214342094,8.95686277,218.48,218.42,1.98]
[1736214344079,8.95686277,218.47,218.42,1.98]
[1736214344769,23.776884,218.55,218.42,1.98]
[1736214344770,8.95686277,218.46,218.42,1.98]
[1736214345373,8.95686277,218.48,218.42,1.98]
[1736214346064,8.95686277,218.47,218.42,1.98]
[1736214354198,13.0653,218.56,218.39,1.6253]
[1736214354199,8.95686277,218.43,218.39,1.6253]
[1736214355089,8.95686277,218.4,218.34,13.0303]
[1736214355297,8.95686277,218.39,218.34,1.5808]
[1736214355611,8.95686277,218.39,218.35,1.98]
[1736214355815,8.95686277,218.4,218.35,1.98]
[1736214356912,8.95686277,218.4,218.34,1.5808]
[1736214357072,8.95686277,218.4,218.36,1.98]
[1736214357397,8.95686277,218.39,218.36,1.98]
[1736214357990,8.95686277,218.41,218.36,1.98]
[1736214358899,8.95686277,218.43,218.36,10.93686277]
[1736214360207,8.95686277,218.42,218.36,1.98]
[1736214360370,8.95686277,218.4,218.36,1.98]
[1736214360697,8.95686277,218.41,218.36,1.98]
[1736214362602,35.82745108,218.46,218.36,1.98]
[1736214362603,8.95686277,218.42,218.36,1.98]
[1736214363403,8.95686277,218.41,218.36,1.98]
[1736214364503,8.95686277,218.4,218.36,1.98]
[1736214365207,8.95686277,218.4,218.34,1.5808]
[1736214365374,8.95686277,218.39,218.36,1.98]
[1736214366405,8.95686277,218.4,218.36,1.98]
[1736214366707,20.0,218.46,218.36,10.93686277]
[1736214366873,8.95686277,218.43,218.36,10.93686277]
[1736214367910,6.2852,218.51,218.36,10.93686277]
[1736214367911,8.95686277,218.44,218.37,8.95686277]
[1736214368085,8.95686277,218.43,218.36,30.93686277]
[1736214369115,8.95686277,218.43,218.36,21.98]
[1736214369309,8.95686277,218.41,218.36,1.98]
[1736214370296,8.95686277,218.41,218.37,1.98]
[1736214371106,8.95686277,218.42,218.37,1.98]
[1736214371790,20.0,218.47,218.37,1.98]
[1736214371992,20.0,218.47,218.37,10.93686277]
[1736214372188,8.95686277,218.45,218.37,10.93686277]
[1736214374011,8.95686277,218.44,218.37,1.98]
[1736214376306,8.95686277,218.45,218.38,8.95686277]
[1736214377196,8.95686277,218.46,218.39,8.95686277]
[1736214377507,8.95686277,218.49,218.41,8.95686277]
[1736214379909,8.95686277,218.47,218.4,16.67666277]
[1736214380091,8.95686277,218.46,218.4,7.7198]
[1736214381905,8.95686277,218.46,218.41,1.98]
[1736214382118,8.95686277,218.45,218.41,1.98]
[1736214383911,8.95686277,218.46,218.41,1.98]
[1736214388543,8.77198263,218.55,218.42,8.95686277]
[1736214388834,8.95686277,218.5,218.43,8.95686277]
[1736214389129,23.776884,218.54,218.43,8.95686277]
[1736214389293,8.95686277,218.5,218.43,8.95686277]
[1736214389701,20.0,218.53,218.43,8.95686277]
[1736214390007,8.95686277,218.5,218.43,8.95686277]
[1736214392322,8.95686277,218.49,218.43,8.95686277]
[1736214393318,20.0,218.53,218.41,10.93686277]
[1736214393319,8.95686277,218.48,218.41,10.93686277]
[1736214394722,8.95686277,218.47,218.4,28.12316277]
[1736214394903,8.95686277,218.46,218.41,1.98]
[1736214395404,8.95686277,218.47,218.41,1.98]
[1736214395809,8.95686277,218.46,218.42,1.98]
[1736214396008,8.95686277,218.44,218.4,7.7198]
[1736214396208,8.95686277,218.44,218.4,9.6998]
[1736214397211,8.95686277,218.44,218.4,3.5557]
[1736214398114,8.95686277,218.42,218.4,3.5557]
[1736214398817,8.95686277,218.42,218.4,1.5757]
[1736214399000,8.95686277,218.44,218.4,1.5757]
[1736214401750,8.95686277,218.45,218.4,1.5757]
[1736214404341,8.95686277,218.44,218.4,1.5757]
[1736214405965,20.0,218.49,218.4,1.5757]
[1736214406127,8.95686277,218.45,218.4,1.5757]
[1736214406958,8.95686277,218.46,218.4,1.5757]
[1736214407764,8.95686277,218.46,218.41,1.98]
[1736214408152,8.95686277,218.45,218.41,1.98]
[1736214409365,8.95686277,218.44,218.36,0.68669632]
[1736214409694,8.95686277,218.44,218.41,1.98]
[1736214410164,8.95686277,218.46,218.41,1.98]
[1736214410461,8.95686277,218.46,218.41,3.5297]
[1736214410955,7.16548263,218.55,218.41,12.48656277]
[1736214411167,8.95686277,218.49,218.42,8.95686277]
[1736214412055,8.95686277,218.48,218.41,12.48656277]
[1736214412357,8.95686277,218.48,218.41,3.5297]
[1736214415861,8.95686277,218.49,218.41,12.48656277]
[1736214416187,8.95686277,218.49,218.42,6.5306]
[1736214416388,20.0,218.52,218.42,6.5306]
[1736214416567,8.95686277,218.49,218.42,6.5306]
[1736214417699,8.95686277,218.46,218.42,6.5306]
[1736214417988,8.95686277,218.47,218.42,6.5306]
[1736214418894,8.95686277,218.48,218.42,8.5106]
[1736214419785,8.95686277,218.47,218.42,8.5106]
[1736214419996,11.4404,218.53,218.41,1.5497]
[1736214419997,8.95686277,218.46,218.41,1.5497]
[1736214420159,8.95686277,218.42,218.37,6.6296]
[1736214420366,8.95686277,218.4,218.37,8.6096]
[1736214421000,8.95686277,218.41,218.37,8.6096]
[1736214423877,8.95686277,218.42,218.37,8.6096]
[1736214425500,8.95686277,218.44,218.37,17.56646277]
[1736214425682,8.95686277,218.45,218.38,8.95686277]
[1736214428807,7.16548263,218.52,218.41,8.95686277]
[1736214429105,8.95686277,218.48,218.41,8.95686277]
[1736214430106,8.95686277,218.49,218.41,8.95686277]
[1736214431805,8.95686277,218.49,218.42,8.95686277]
[1736214433702,8.95686277,218.49,218.43,1.6435]
[1736214433904,8.95686277,218.49,218.44,1.98]
[1736214434092,28.95686277,218.5,218.44,1.98]
[1736214435088,8.95686277,218.51,218.44,1.98]
[1736214437021,8.95686277,218.5,218.44,1.98]
[1736214440408,8.95686277,218.51,218.44,8.0359]
[1736214441506,8.95686277,218.51,218.44,16.99276277]
[1736214442010,8.95686277,218.51,218.44,8.0359]
[1736214442310,8.95686277,218.5,218.44,8.0359]
[1736214447410,20.0,218.54,218.44,8.0359]
[1736214447598,8.95686277,218.51,218.44,8.0359]
[1736214448620,23.776884,218.57,218.45,8.95686277]
[1736214448794,8.95686277,218.53,218.45,8.95686277]
[1736214451408,8.45686277,218.53,218.45,8.95686277]
[1736214451721,8.45686277,218.53,218.46,8.95686277]
[1736214454218,8.95686277,218.52,218.45,8.95686277]
[1736214455226,8.95686277,218.53,218.46,8.95686277]
[1736214455397,8.95686277,218.52,218.45,8.95686277]
[1736214460245,1.579,218.62,218.45,8.95686277]
[1736214460246,20.0,218.59,218.45,8.95686277]
[1736214460414,8.95686277,218.54,218.45,8.95686277]
[1736214461219,20.0,218.59,218.48,1.6478]
[1736214461420,8.95686277,218.58,218.5,15.29646277]
[1736214461630,8.95686277,218.58,218.51,10.93686277]
[1736214462553,8.95686277,218.59,218.51,10.93686277]
[1736214463559,20.0,218.62,218.54,8.95686277]
[1736214463848,14.33096527,218.67,218.55,1.6478]
[1736214463849,8.95686277,218.61,218.55,1.6478]
[1736214464321,8.95686277,218.62,218.55,1.6478]
[1736214465260,8.95686277,218.61,218.55,1.6478]
[1736214465455,8.95686277,218.6,218.55,1.6478]
[1736214465615,8.95686277,218.58,218.55,1.6478]
[1736214467553,8.95686277,218.57,218.55,1.6478]
[1736214467772,8.95686277,218.56,218.55,1.6478]
[1736214468526,8.95686277,218.57,218.55,1.6478]
[1736214472442,8.95686277,218.58,218.55,1.6478]
[1736214472939,20.0,218.64,218.55,1.6478]
[1736214473154,8.95686277,218.59,218.55,1.6478]
[1736214473657,8.95686277,218.58,218.55,1.6478]
[1736214474954,8.95686277,218.57,218.55,1.6478]
[1736214477045,8.95686277,218.58,218.55,1.6478]
[1736214477246,8.95686277,218.59,218.55,1.6478]
[1736214479259,8.95686277,218.58,218.55,1.6478]
[1736214479441,8.95686277,218.57,218.55,1.6478]
[1736214480856,18.59868263,218.66,218.52,1.98]
[1736214480857,8.95686277,218.56,218.52,1.98]
[1736214481181,8.95686277,218.55,218.52,1.98]
[1736214481693,8.95686277,218.53,218.49,1.5857]
[1736214481842,31.435,218.63,218.49,1.5857]
[1736214481843,8.95686277,218.52,218.49,3.5657]
[1736214482557,8.95686277,218.52,218.49,1.5857]
[1736214484064,8.95686277,218.51,218.48,1.98]
[1736214484876,8.95686277,218.52,218.48,1.98]
[1736214486052,8.95686277,218.53,218.48,1.98]
[1736214486779,8.90178567,218.53,218.48,1.98]
[1736214490570,8.95686277,218.52,218.48,1.98]
[1736214493691,8.95686277,218.53,218.48,1.98]
[1736214496990,8.95686277,218.52,218.48,1.98]
[1736214498803,8.95686277,218.53,218.48,1.98]
[1736214500573,20.23168263,218.6,218.48,1.98]
[1736214500574,7.16548263,218.6,218.48,30.93686277]
[1736214500777,7.16548263,218.6,218.5,8.95686277]
[1736214500971,8.95686277,218.58,218.5,8.95686277]
[1736214501298,7.16548263,218.6,218.49,8.95686277]
[1736214501498,8.95686277,218.57,218.49,8.95686277]
[1736214501695,20.0,218.61,218.49,8.95686277]
[1736214501887,8.95686277,218.57,218.51,1.5865]
[1736214502697,8.95686277,218.56,218.51,1.5865]
[1736214503295,20.0,218.59,218.51,1.5865]
[1736214503485,8.95686277,218.57,218.51,1.5865]
[1736214503786,8.95686277,218.56,218.51,1.5865]
[1736214514907,8.95686277,218.54,218.51,1.5865]
[1736214515087,8.95686277,218.52,218.49,1.98]
[1736214516097,8.95686277,218.51,218.49,1.98]
[1736214517594,8.95686277,218.52,218.49,1.98]
[1736214518100,8.95686277,218.53,218.49,1.98]
[1736214518606,8.95686277,218.55,218.49,1.98]
[1736214519101,20.0,218.58,218.49,1.98]
[1736214519299,8.95686277,218.55,218.49,1.98]
[1736214519504,20.0,218.58,218.49,1.98]
[1736214519700,8.95686277,218.55,218.49,1.98]
[1736214520205,20.0,218.58,218.49,1.98]
[1736214520508,8.95686277,218.55,218.49,1.98]
[1736214521882,20.0,218.59,218.49,1.98]
[1736214522082,8.95686277,218.55,218.49,1.98]
[1736214523311,8.95686277,218.56,218.49,1.98]
[1736214531017,8.95686277,218.56,218.48,28.95686277]
[1736214531315,8.95686277,218.56,218.49,1.98]
[1736214535514,8.95686277,218.54,218.49,1.98]
[1736214537420,8.95686277,218.54,218.5,1.98]
[1736214544928,8.95686277,218.54,218.51,1.96]
[1736214547940,8.95686277,218.56,218.51,1.96]
[1736214551436,20.0,218.59,218.51,1.96]
[1736214551606,28.95686277,218.59,218.51,1.96]
[1736214551939,8.95686277,218.57,218.51,1.96]
[1736214552630,8.95686277,218.56,218.51,1.96]
[1736214553224,8.95686277,218.55,218.51,1.96]
[1736214557917,8.95686277,218.53,218.51,1.96]
[1736214559441,8.95686277,218.54,218.51,1.96]
[1736214563441,27.16548263,218.59,218.51,1.96]
[1736214563617,8.95686277,218.54,218.51,1.96]
[1736214565034,8.95686277,218.53,218.51,1.96]
[1736214565244,8.95686277,218.54,218.51,1.96]
[1736214565431,8.95686277,218.55,218.51,1.96]
[1736214565630,8.95686277,218.54,218.51,1.96]
[1736214566819,8.95686277,218.53,218.51,1.96]
[1736214569629,8.95686277,218.54,218.51,1.96]
[1736214575260,8.95686277,218.54,218.49,1.96]
[1736214583358,7.16548263,218.58,218.49,1.96]
[1736214583578,8.95686277,218.57,218.49,10.91686277]
[1736214584340,8.95686277,218.57,218.5,8.95686277]
[1736214584748,8.95686277,218.56,218.49,10.91686277]
[1736214584964,8.95686277,218.57,218.5,8.95686277]
[1736214585364,20.0,218.59,218.51,8.95686277]
[1736214585560,20.0,218.59,218.53,1.5342]
[1736214585864,7.16548263,218.6,218.53,1.5342]
[1736214586068,8.95686277,218.59,218.53,1.5342]
[1736214587670,8.95686277,218.6,218.53,10.49106277]
[1736214589175,8.95686277,218.59,218.53,10.49106277]
[1736214589968,8.95686277,218.6,218.53,10.49106277]
[1736214590147,7.16548263,218.64,218.54,8.95686277]
[1736214590351,8.95686277,218.61,218.55,8.95686277]
[1736214590685,8.95686277,218.61,218.56,1.96]
[1736214590983,7.16548263,218.65,218.56,10.91686277]
[1736214591151,8.95686277,218.63,218.56,10.91686277]
[1736214591544,8.95686277,218.62,218.56,10.91686277]
[1736214592467,20.0,218.64,218.56,10.91686277]
[1736214592980,8.95686277,218.62,218.56,10.91686277]
[1736214596078,20.0,218.64,218.56,10.91686277]
[1736214596079,8.95686277,218.63,218.56,10.91686277]
[1736214596283,20.0,218.65,218.56,10.91686277]
[1736214596483,8.95686277,218.63,218.56,10.91686277]
[1736214596871,8.95686277,218.62,218.56,1.96]
[1736214597079,8.95686277,218.61,218.56,1.96]
[1736214597261,8.95686277,218.62,218.56,1.96]
[1736214599188,8.95686277,218.63,218.56,10.91686277]
[1736214602601,7.16548263,218.69,218.6,8.95686277]
[1736214602602,8.95686277,218.67,218.6,8.95686277]
[1736214602773,8.95686277,218.68,218.61,8.95686277]
[1736214603169,20.0,218.66,218.6,8.95686277]
[1736214603403,20.0,218.66,218.59,8.95686277]
[1736214603600,28.95686277,218.66,218.59,8.95686277]
[1736214603804,20.0,218.66,218.6,8.95686277]
[1736214604398,8.95686277,218.66,218.59,8.95686277]
[1736214606794,8.95686277,218.67,218.6,8.95686277]
[1736214608305,8.95686277,218.66,218.59,8.95686277]
[1736214608469,11.4305,218.72,218.61,8.95686277]
[1736214608673,8.95686277,218.68,218.61,8.95686277]
[1736214608878,11.4305,218.72,218.61,8.95686277]
[1736214609180,8.95686277,218.68,218.61,8.95686277]
[1736214609508,8.95686277,218.67,218.58,1.6341]
[1736214609712,8.95686277,218.66,218.59,8.95686277]
[1736214609873,8.95686277,218.66,218.58,1.6341]
[1736214609874,8.95686277,218.62,218.58,1.6341]
[1736214610072,8.95686277,218.61,218.58,3.5941]
[1736214611208,8.95686277,218.62,218.58,3.5941]
[1736214614124,8.95686277,218.63,218.58,3.5941]
[1736214614888,20.0,218.68,218.58,12.55096277]
[1736214615088,8.95686277,218.64,218.58,12.55096277]
[1736214616784,8.95686277,218.66,218.59,8.95686277]
[1736214617089,8.95686277,218.68,218.61,8.95686277]
[1736214618106,8.95686277,218.69,218.62,8.95686277]
[1736214618307,8.95686277,218.68,218.61,8.95686277]
[1736214621616,20.0,218.7,218.61,8.95686277]
[1736214621919,8.95686277,218.68,218.61,8.95686277]
[1736214622120,11.43,218.73,218.63,8.95686277]
[1736214622294,8.95686277,218.71,218.64,8.95686277]
[1736214622709,8.95686277,218.71,218.65,1.96]
[1736214624706,20.0,218.73,218.65,10.91686277]
[1736214625007,8.95686277,218.72,218.65,10.91686277]
[1736214625205,8.95686277,218.71,218.65,1.96]
[1736214626205,8.95686277,218.7,218.65,1.96]
[1736214628230,20.0,218.74,218.65,1.96]
[1736214628442,8.95686277,218.7,218.65,1.96]
[1736214629348,20.0,218.74,218.66,1.6047]
[1736214629822,8.95686277,218.72,218.66,1.6047]
[1736214630442,8.95686277,218.73,218.67,6.4866]
[1736214630619,8.95686277,218.74,218.67,15.44346277]
[1736214633218,8.95686277,218.73,218.67,8.4466]
[1736214633910,8.95686277,218.72,218.67,8.4466]
[1736214634605,8.95686277,218.7,218.67,8.4466]
[1736214634809,8.95686277,218.69,218.67,1.96]
[1736214635643,8.95686277,218.7,218.67,1.96]
[1736214636933,8.95686277,218.7,218.66,1.6047]
[1736214638120,8.95686277,218.69,218.66,1.6047]
[1736214638320,8.95686277,218.7,218.66,1.6047]
[1736214638540,23.776884,218.76,218.66,1.6047]
[1736214638745,8.95686277,218.7,218.66,1.6047]
[1736214639052,8.95686277,218.71,218.66,1.6047]
[1736214642952,8.95686277,218.7,218.66,1.6047]
[1736214643161,8.95686277,218.68,218.66,1.6047]
[1736214643461,8.95686277,218.67,218.61,7.8801]
[1736214643643,8.95686277,218.65,218.61,7.8801]
[1736214645322,8.95686277,218.66,218.61,7.8801]
[1736214645842,8.95686277,218.67,218.61,7.8801]
[1736214646358,8.95686277,218.67,218.61,16.83696277]
[1736214646728,8.95686277,218.67,218.61,7.8801]
[1736214647661,11.4301,218.72,218.61,16.83696277]
[1736214647662,8.95686277,218.68,218.61,16.83696277]
[1736214649046,8.95686277,218.68,218.62,1.96]
[1736214649368,8.95686277,218.67,218.62,1.96]
[1736214650071,20.0,218.71,218.62,1.96]
[1736214650270,8.95686277,218.67,218.62,1.96]
[1736214651148,8.95686277,218.66,218.62,1.96]
[1736214653557,8.95686277,218.65,218.62,1.96]
[1736214653735,8.95686277,218.65,218.61,7.8801]
[1736214653736,8.95686277,218.64,218.61,9.8401]
[1736214654235,11.4311,218.7,218.61,9.8401]
[1736214654472,8.95686277,218.65,218.61,9.8401]
[1736214657868,8.95686277,218.63,218.61,3.5538]
[1736214660250,8.95686277,218.64,218.61,3.5538]
[1736214662951,20.0,218.67,218.61,1.5938]
[1736214663158,8.95686277,218.65,218.61,1.5938]
[1736214663460,8.95686277,218.66,218.61,1.5938]
[1736214663765,20.0,218.7,218.61,10.55066277]
[1736214663968,8.95686277,218.7,218.63,8.95686277]
[1736214664558,8.95686277,218.69,218.63,8.95686277]
[1736214664978,8.95686277,218.68,218.62,6.5929]
[1736214665159,8.95686277,218.67,218.62,6.5929]
[1736214666062,8.95686277,218.63,218.61,1.5938]
[1736214666885,8.95686277,218.65,218.61,1.5938]
[1736214667269,8.95686277,218.64,218.61,1.5938]
[1736214667584,8.95686277,218.65,218.61,1.5938]
[1736214668582,8.95686277,218.66,218.61,1.5938]
[1736214670277,8.95686277,218.68,218.62,8.95686277]
[1736214670467,7.16548263,218.73,218.62,8.95686277]
[1736214670652,8.95686277,218.68,218.64,6.5693]
[1736214670858,20.0,218.71,218.64,6.5693]
[1736214671460,7.16548263,218.74,218.64,15.52616277]
[1736214671662,8.95686277,218.71,218.64,15.52616277]
[1736214671863,8.95686277,218.7,218.64,6.5693]
[1736214672370,8.95686277,218.71,218.64,15.52616277]
[1736214672573,8.95686277,218.69,218.64,6.5693]
[1736214673156,20.0,218.73,218.64,15.52616277]
[1736214673474,8.95686277,218.71,218.64,15.52616277]
[1736214673674,8.95686277,218.7,218.64,6.5693]
[1736214673976,8.95686277,218.71,218.64,15.52616277]
[1736214674277,8.95686277,218.7,218.64,6.5693]
[1736214675082,8.95686277,218.71,218.64,6.5693]
[1736214675879,8.95686277,218.72,218.64,15.52616277]
[1736214676084,8.95686277,218.72,218.65,10.51236277]
[1736214678880,8.95686277,218.73,218.66,8.95686277]
[1736214679064,8.95686277,218.74,218.67,10.91686277]
[1736214679266,8.95686277,218.75,218.67,21.96]
[1736214679473,8.95686277,218.74,218.67,30.91686277]
[1736214679782,8.95686277,218.69,218.67,1.96]
[1736214680581,8.95686277,218.68,218.65,1.5555]
[1736214681271,8.95686277,218.69,218.65,1.5555]
[1736214681873,8.95686277,218.7,218.65,1.5555]
[1736214684689,8.95686277,218.71,218.65,1.5555]
[1736214685156,8.95686277,218.72,218.65,10.51236277]
[1736214686388,8.95686277,218.71,218.65,10.51236277]
[1736214686590,8.95686277,218.71,218.65,1.5555]
[1736214688380,8.95686277,218.69,218.65,1.5555]
[1736214688892,8.95686277,218.68,218.65,3.5155]
[1736214690067,20.0,218.72,218.65,3.5155]
[1736214690407,8.95686277,218.69,218.65,3.5155]
[1736214691291,8.95686277,218.7,218.65,3.5155]
[1736214691962,28.95686277,218.71,218.65,3.5155]
[1736214694394,20.0,218.71,218.65,12.47236277]
[1736214694571,8.95686277,218.72,218.65,12.47236277]
[1736214694766,8.95686277,218.73,218.66,8.95686277]
[1736214695017,28.95686277,218.74,218.67,8.95686277]
[1736214695476,20.0,218.74,218.67,8.95686277]
[1736214695978,20.0,218.74,218.68,8.95686277]
[1736214696575,20.0,218.74,218.67,8.95686277]
[1736214696780,8.95686277,218.74,218.67,8.95686277]
[1736214698596,8.95686277,218.72,218.65,3.5155]
[1736214698895,8.95686277,218.71,218.65,3.5155]
[1736214699097,8.95686277,218.72,218.65,3.5155]
[1736214699268,8.95686277,218.71,218.65,3.5155]
[1736214699474,8.95686277,218.72,218.65,12.47236277]
[1736214700277,20.0,218.74,218.59,1.6028]
[1736214700278,8.95686277,218.66,218.59,1.6028]
[1736214700590,8.95686277,218.64,218.59,1.6028]
[1736214707812,8.95686277,218.64,218.59,3.5628]
[1736214710516,8.95686277,218.63,218.59,3.5628]
[1736214713832,8.95686277,218.62,218.59,3.5628]
[1736214714035,35.82745108,218.68,218.56,1.96]
[1736214714036,8.95686277,218.6,218.56,1.96]
[1736214714247,8.95686277,218.57,218.56,1.96]
[1736214714413,8.95686277,218.57,218.53,7.8044]
[1736214714612,8.95686277,218.56,218.55,1.96]
[1736214715041,8.95686277,218.56,218.54,1.96]
[1736214717033,8.95686277,218.56,218.53,7.8044]
[1736214717236,8.95686277,218.56,218.53,9.7644]
[1736214717556,8.95686277,218.54,218.48,1.5528]
[1736214717838,8.95686277,218.52,218.49,1.96]
[1736214718723,8.95686277,218.53,218.49,1.96]
[1736214720137,8.95686277,218.53,218.48,1.5528]
[1736214720435,8.95686277,218.53,218.49,1.96]
[1736214721935,8.95686277,218.51,218.49,1.96]
[1736214722135,8.95686277,218.52,218.49,1.96]
[1736214722532,23.776884,218.6,218.49,1.96]
[1736214722533,8.95686277,218.53,218.49,1.96]
[1736214727147,8.95686277,218.54,218.49,1.96]
[1736214730226,8.95686277,218.53,218.49,1.96]
[1736214730664,8.95686277,218.52,218.49,1.96]
[1736214731263,8.95686277,218.53,218.49,1.96]
[1736214731555,8.95686277,218.54,218.49,1.96]
[1736214734970,6.5559,218.63,218.49,10.91686277]
[1736214735138,8.95686277,218.58,218.51,8.95686277]
[1736214735339,8.95686277,218.55,218.49,10.91686277]
[1736214735860,8.95686277,218.56,218.49,10.91686277]
[1736214736256,8.95686277,218.57,218.5,8.95686277]
[1736214736467,8.95686277,218.58,218.51,8.95686277]
[1736214739089,8.95686277,218.59,218.52,8.95686277]
[1736214739687,18.316091,218.67,218.54,8.95686277]
[1736214739846,8.95686277,218.62,218.56,8.95686277]
[1736214740047,8.95686277,218.62,218.56,10.91686277]
[1736214740685,8.95686277,218.63,218.56,10.91686277]
[1736214741180,8.95686277,218.63,218.56,21.96]
[1736214741488,8.95686277,218.62,218.56,1.96]
[1736214741983,8.95686277,218.62,218.58,20.0]
[1736214742348,8.95686277,218.62,218.56,1.96]
[1736214742547,8.95686277,218.62,218.56,10.91686277]
[1736214742748,8.95686277,218.62,218.56,1.96]
[1736214747620,8.95686277,218.61,218.56,1.96]
[1736214747900,8.95686277,218.58,218.54,1.5654]
[1736214748101,8.95686277,218.55,218.51,1.96]
[1736214748277,8.95686277,218.54,218.49,1.5213]
[1736214748466,8.95686277,218.53,218.49,3.4813]
[1736214748856,8.95686277,218.54,218.49,3.4813]
[1736214749978,8.45686277,218.54,218.49,3.4813]
[1736214750187,8.95686277,218.55,218.49,3.4813]
[1736214751159,8.95686277,218.56,218.49,12.43816277]
[1736214752490,23.776884,218.6,218.49,12.43816277]
[1736214752491,8.95686277,218.55,218.49,3.4813]
[1736214753907,8.95686277,218.54,218.49,3.4813]
[1736214755317,8.95686277,218.55,218.49,3.4813]
[1736214761424,8.95686277,218.54,218.49,3.4813]
[1736214763828,8.95686277,218.55,218.49,3.4813]
[1736214764422,8.95686277,218.56,218.49,3.4813]
[1736214765228,8.95686277,218.55,218.49,3.4813]
[1736214769600,8.95686277,218.54,218.49,3.4813]
[1736214772329,8.95686277,218.54,218.5,1.96]
[1736214773232,8.95686277,218.55,218.5,1.96]
[1736214774333,8.95686277,218.56,218.5,1.96]
[1736214774637,8.95686277,218.57,218.5,10.91686277]
[1736214775143,20.0,218.58,218.5,10.91686277]
[1736214775144,28.95686277,218.58,218.5,10.91686277]
[1736214775441,8.95686277,218.6,218.53,8.95686277]
[1736214776335,11.4341,218.65,218.54,8.95686277]
[1736214776628,11.4341,218.65,218.5,1.96]
[1736214776629,8.95686277,218.63,218.56,8.95686277]
[1736214776837,8.95686277,218.63,218.56,10.45926277]
[1736214777141,8.95686277,218.61,218.56,1.5024]
[1736214778633,8.95686277,218.6,218.56,1.5024]
[1736214780131,8.95686277,218.58,218.56,1.5024]
[1736214780840,8.95686277,218.59,218.56,1.5024]
[1736214781137,8.95686277,218.6,218.56,1.5024]
[1736214781318,8.95686277,218.61,218.56,1.5024]
[1736214783039,8.95686277,218.62,218.56,1.5024]
[1736214783537,8.95686277,218.6,218.56,1.5024]
[1736214783717,11.4327,218.67,218.56,1.5024]
[1736214783918,8.95686277,218.6,218.56,1.5024]
[1736214784330,8.95686277,218.61,218.56,1.5024]
[1736214784507,8.95686277,218.62,218.56,1.5024]
[1736214784710,8.95686277,218.64,218.57,15.00106277]
[1736214784911,8.95686277,218.63,218.57,15.00106277]
[1736214785159,8.95686277,218.63,218.57,6.0442]
[1736214785332,8.95686277,218.6,218.57,6.0442]
[1736214785539,8.95686277,218.62,218.57,6.0442]
[1736214786439,20.0,218.65,218.57,6.0442]
[1736214786744,8.95686277,218.62,218.57,6.0442]
[1736214787531,8.95686277,218.61,218.57,6.0442]
[1736214789226,8.95686277,218.62,218.57,6.0442]
[1736214794132,8.95686277,218.6,218.57,6.0442]
[1736214794334,8.95686277,218.6,218.56,1.5024]
[1736214794842,8.95686277,218.61,218.56,1.5024]
[1736214797254,8.95686277,218.62,218.56,1.5024]
[1736214798347,8.95686277,218.61,218.56,1.5024]
[1736214799466,8.95686277,218.62,218.56,1.5024]
[1736214803378,8.95686277,218.63,218.57,1.96]
[1736214804177,8.95686277,218.64,218.57,1.96]
[1736214804491,8.95686277,218.63,218.57,1.96]
[1736214808390,8.95686277,218.62,218.57,1.96]
[1736214814079,20.0,218.66,218.57,1.96]
[1736214814279,8.95686277,218.63,218.57,1.96]
[1736214818209,8.95686277,218.62,218.57,1.96]
[1736214820386,8.95686277,218.64,218.57,1.96]
[1736214821822,11.4321,218.69,218.57,10.91686277]
[1736214821983,8.95686277,218.64,218.57,1.96]
[1736214824417,8.95686277,218.64,218.58,1.96]
[1736214825584,8.95686277,218.62,218.57,1.96]
[1736214825790,8.95686277,218.59,218.56,1.5024]
[1736214827106,8.95686277,218.58,218.56,1.5024]
[1736214828903,8.95686277,218.59,218.56,1.5024]
[1736214833843,8.95686277,218.58,218.56,1.5024]